fUST/lending_fUST_20250301
["ID","MTS","AMOUNT","RATE_DAILY","PERIOD"]
[354949115,1740841646093,-2578.49262239,0.00027778,2]
[354949116,1740841648092,-388.76830001,0.00027777,2]
[354949117,1740841653090,-111.23169999,0.00027777,2]
[354949118,1740841653113,-615.09,0.00027777,2]
[354949119,1740841653137,-2053.64758819,0.00027778,2]
[354949120,1740841667445,151.0,0.000279,17]
[354949121,1740841667903,151.0,0.000276,16]
[354949124,1740841745316,-1426.57553163,0.000277,2]
[354949125,1740841745338,-429.94,0.00027768,3]
[354949126,1740841745360,-300.0,0.00027776,2]
[354949127,1740841745382,-4008.05,0.00027777,2]
[354949128,1740841745405,-555.52,0.00027777,2]
[354949129,1740841745429,-500.0,0.00027777,2]
[354949130,1740841745451,-500.0,0.00027777,2]
[354949131,1740841745473,-500.0,0.00027777,2]
[354949132,1740841745494,-500.0,0.00027777,2]
[354949133,1740841745514,-18303.7,0.00027777,2]
[354949134,1740841745535,-500.0,0.00027777,2]
[354949135,1740841745556,-298928.18667224,0.00027778,2]
[354949136,1740841745577,-500.0,0.000278,5]
[354949137,1740841745598,-160.0,0.000278,5]
[354949138,1740841745619,-500.0,0.000278,5]
[354949139,1740841745640,-152.11819969,0.000278,5]
[354949140,1740841745663,-15241.14568124,0.0002786,2]
[354949141,1740841757148,-217.28320877,0.00025678,2]
[354949142,1740841757175,-1514.75966215,0.000277,2]
[354949143,1740841757203,-17265.78,0.00027777,2]
[354949144,1740841757229,-2745.03,0.00027777,2]
[354949145,1740841757258,-9347.82759036,0.0002786,2]
[354949146,1740841757285,-200.93520967,0.000279,4]
[354949147,1740841757311,-500.0,0.00027999,2]
[354949148,1740841757337,-500.0,0.00027999,2]
[354949149,1740841757377,-71.93458588,0.00027999,2]
[354949150,1740841757427,-428.06541412,0.00027999,2]
[354949151,1740841757461,-2307.68902756,0.00028,2]
[354949152,1740841757495,-500.0,0.00028,30]
[354949153,1740841757525,-500.0,0.00028,30]
[354949154,1740841757555,-922.92978656,0.00028,30]
[354949155,1740841757583,-250.0,0.00028014,2]
[354949156,1740841757613,-1331.28,0.00028051,5]
[354949157,1740841757642,-1020.85,0.00028051,2]
[354949158,1740841757673,-1031.27,0.00028051,2]
[354949159,1740841757702,-1161.08,0.00028051,2]
[354949160,1740841757727,-500.0,0.00028051,2]
[354949161,1740841757754,-500.0,0.00028051,2]
[354949162,1740841757782,-1745.14,0.00028051,2]
[354949163,1740841757810,-1751.64,0.00028051,2]
[354949164,1740841757838,-500.0,0.00028051,2]
[354949165,1740841757865,-615.09,0.00028051,2]
[354949166,1740841757891,-4008.05,0.00028051,2]
[354949167,1740841757919,-555.52,0.00028051,2]
[354949168,1740841757945,-500.0,0.00028051,2]
[354949169,1740841757973,-500.0,0.00028051,2]
[354949170,1740841757999,-18303.7,0.00028051,2]
[354949171,1740841758025,-500.0,0.00028051,2]
[354949172,1740841758052,-17265.78,0.00028051,2]
[354949173,1740841758079,-2745.03,0.00028051,2]
[354949174,1740841758106,-1426.57553163,0.00028125,2]
[354949175,1740841758134,-151.0,0.000282,20]
[354949176,1740841758164,-1331.28,0.00028325,5]
[354949177,1740841758190,-1020.85,0.00028325,2]
[354949178,1740841758217,-1031.27,0.00028325,2]
[354949179,1740841758244,-1161.08,0.00028325,2]
[354949180,1740841758270,-500.0,0.00028325,2]
[354949181,1740841758298,-500.0,0.00028325,2]
[354949182,1740841758324,-1745.14,0.00028325,2]
[354949183,1740841758350,-1751.64,0.00028325,2]
[354949184,1740841758376,-615.09,0.00028325,2]
[354949185,1740841758402,-4008.05,0.00028325,2]
[354949186,1740841758429,-555.52,0.00028325,2]
[354949187,1740841758455,-500.0,0.00028325,2]
[354949188,1740841758481,-500.0,0.00028325,2]
[354949189,1740841758507,-18303.7,0.00028325,2]
[354949190,1740841758533,-500.0,0.00028325,2]
[354949191,1740841758561,-17265.78,0.00028325,2]
[354949192,1740841758588,-2745.03,0.00028325,2]
[354949193,1740841758615,-151.0,0.000284,15]
[354949194,1740841758642,-200.93520953,0.00028477,5]
[354949195,1740841758667,-1426.57553163,0.00028549,2]
[354949196,1740841758693,-1331.28,0.00028599,5]
[354949197,1740841758722,-1020.85,0.00028599,2]
[354949198,1740841758751,-1031.27,0.00028599,2]
[354949199,1740841758776,-1161.08,0.00028599,2]
[354949200,1740841758803,-1745.14,0.00028599,2]
[354949201,1740841758829,-1751.64,0.00028599,2]
[354949202,1740841758854,-615.09,0.00028599,2]
[354949203,1740841758881,-4008.05,0.00028599,2]
[354949204,1740841758906,-555.52,0.00028599,2]
[354949205,1740841758938,-500.0,0.00028599,2]
[354949206,1740841758965,-500.0,0.00028599,2]
[354949207,1740841758990,-18303.7,0.00028599,2]
[354949208,1740841759015,-500.0,0.00028599,2]
[354949209,1740841759040,-17265.78,0.00028599,2]
[354949210,1740841759066,-2745.03,0.00028599,2]
[354949211,1740841759090,-203.0816571,0.00028607,2]
[354949212,1740841759115,-151.0,0.000287,19]
[354949213,1740841759140,-1331.28,0.00028873,5]
[354949214,1740841759165,-1020.85,0.00028873,2]
[354949215,1740841759190,-1031.27,0.00028873,2]
[354949216,1740841759214,-1161.08,0.00028873,2]
[354949217,1740841759247,-1745.14,0.00028873,2]
[354949218,1740841759281,-1751.64,0.00028873,2]
[354949219,1740841759306,-615.09,0.00028873,2]
[354949220,1740841759331,-4008.05,0.00028873,2]
[354949221,1740841759357,-555.52,0.00028873,2]
[354949222,1740841759383,-500.0,0.00028873,2]
[354949223,1740841759408,-500.0,0.00028873,2]
[354949224,1740841759432,-18303.7,0.00028873,2]
[354949225,1740841759457,-500.0,0.00028873,2]
[354949226,1740841759482,-17265.78,0.00028873,2]
[354949227,1740841759507,-2745.03,0.00028873,2]
[354949228,1740841759533,-1426.57553163,0.00028974,2]
[354949229,1740841759555,-151.0,0.00029,10]
[354949230,1740841759580,-200.93520953,0.00029054,5]
[354949231,1740841759602,-1331.28,0.00029147,5]
[354949232,1740841759625,-1020.85,0.00029147,2]
[354949233,1740841759647,-1031.27,0.00029147,2]
[354949234,1740841759668,-1161.08,0.00029147,2]
[354949235,1740841760212,-1745.14,0.00029147,2]
[354949236,1740841760234,-1751.64,0.00029147,2]
[354949237,1740841760255,-615.09,0.00029147,2]
[354949238,1740841760277,-4008.05,0.00029147,2]
[354949239,1740841760300,-555.52,0.00029147,2]
[354949240,1740841760321,-500.0,0.00029147,2]
[354949241,1740841760343,-500.0,0.00029147,2]
[354949242,1740841760364,-18303.7,0.00029147,2]
[354949243,1740841760386,-500.0,0.00029147,2]
[354949244,1740841760410,-17265.78,0.00029147,2]
[354949245,1740841760433,-2745.03,0.00029147,2]
[354949246,1740841760457,-151.0,0.000292,20]
[354949247,1740841760478,-500.0,0.00029217,5]
[354949248,1740841760500,-500.0,0.00029217,5]
[354949249,1740841760521,-500.0,0.00029217,5]
[354949250,1740841760542,-500.0,0.00029217,5]
[354949251,1740841760563,-500.0,0.00029217,5]
[354949252,1740841760584,-500.0,0.00029217,5]
[354949253,1740841760607,-500.0,0.00029217,5]
[354949254,1740841760628,-500.0,0.00029217,5]
[354949255,1740841760649,-500.0,0.00029217,5]
[354949256,1740841760673,-500.0,0.00029217,5]
[354949257,1740841760698,-500.0,0.00029217,5]
[354949258,1740841760719,-500.0,0.00029217,5]
[354949259,1740841760741,-151.0,0.000293,13]
[354949260,1740841760762,-1426.57553163,0.00029398,2]
[354949261,1740841760792,-1331.28,0.00029421,5]
[354949262,1740841760814,-1020.85,0.00029421,2]
[354949263,1740841760836,-1031.27,0.00029421,2]
[354949264,1740841760858,-1161.08,0.00029421,2]
[354949265,1740841760881,-1745.14,0.00029421,2]
[354949266,1740841760902,-1751.64,0.00029421,2]
[354949267,1740841760926,-615.09,0.00029421,2]
[354949268,1740841760948,-4008.05,0.00029421,2]
[354949269,1740841760970,-555.52,0.00029421,2]
[354949270,1740841760991,-500.0,0.00029421,2]
[354949271,1740841761013,-500.0,0.00029421,2]
[354949272,1740841761034,-18303.7,0.00029421,2]
[354949273,1740841761056,-500.0,0.00029421,2]
[354949274,1740841761079,-8984.3730378,0.00029421,2]
[354949275,1740841761465,-1514.75966213,0.00028429,2]
[354949276,1740841761591,-8281.4069622,0.00029421,2]
[354949277,1740841761613,-2745.03,0.00029421,2]
[354949278,1740841761634,-152.08,0.00029486,2]
[354949279,1740841761655,-152.08,0.00029486,2]
[354949280,1740841761678,-152.08,0.00029486,2]
[354949281,1740841761701,-152.08,0.00029486,2]
[354949282,1740841761723,-152.08,0.00029487,2]
[354949283,1740841761745,-152.08,0.00029487,2]
[354949284,1740841761766,-152.08,0.00029487,2]
[354949285,1740841761788,-152.08,0.00029487,2]
[354949286,1740841761809,-152.08,0.00029487,2]
[354949287,1740841761830,-152.08,0.00029487,2]
[354949288,1740841761850,-500.0,0.00029495,2]
[354949289,1740841761871,-500.0,0.00029495,2]
[354949290,1740841761891,-500.0,0.00029495,2]
[354949291,1740841761915,-500.0,0.00029495,2]
[354949292,1740841761936,-500.0,0.00029495,2]
[354949293,1740841761956,-500.0,0.00029495,2]
[354949294,1740841761977,-500.0,0.00029495,2]
[354949295,1740841761998,-500.0,0.00029495,2]
[354949296,1740841762020,-500.0,0.00029495,2]
[354949297,1740841762042,-500.0,0.00029496,2]
[354949298,1740841762063,-500.0,0.00029496,2]
[354949299,1740841762085,-500.0,0.00029496,2]
[354949300,1740841762106,-500.0,0.00029496,2]
[354949301,1740841762127,-500.0,0.00029496,2]
[354949302,1740841762147,-511.2011299,0.00029496,2]
[354949303,1740841762171,-500.0,0.00029496,2]
[354949304,1740841762192,-971.38,0.00029496,2]
[354949305,1740841762214,-500.0,0.00029496,2]
[354949306,1740841762239,-500.0,0.00029496,2]
[354949307,1740841762260,-500.0,0.00029496,2]
[354949308,1740841762281,-500.0,0.00029496,2]
[354949309,1740841762303,-500.0,0.00029496,2]
[354949310,1740841762323,-500.0,0.00029496,2]
[354949311,1740841762345,-500.0,0.00029496,2]
[354949312,1740841762366,-500.0,0.00029496,2]
[354949313,1740841762386,-500.0,0.00029496,2]
[354949314,1740841762407,-500.0,0.00029496,2]
[354949315,1740841762428,-560.51,0.00029496,2]
[354949316,1740841762449,-500.0,0.00029496,2]
[354949317,1740841762471,-721.5,0.00029496,2]
[354949318,1740841762491,-500.0,0.00029496,2]
[354949319,1740841762512,-500.0,0.00029496,2]
[354949320,1740841762533,-500.0,0.00029496,2]
[354949321,1740841762555,-500.0,0.00029496,2]
[354949322,1740841762575,-513.87068856,0.00029496,2]
[354949323,1740841762597,-500.0,0.00029496,2]
[354949324,1740841762618,-1551.91,0.00029496,2]
[354949325,1740841762638,-500.0,0.00029496,2]
[354949326,1740841762659,-732.37,0.00029496,2]
[354949327,1740841762680,-500.0,0.00029496,2]
[354949328,1740841762702,-500.0,0.00029496,2]
[354949329,1740841762722,-500.0,0.00029496,2]
[354949330,1740841762744,-500.0,0.00029496,2]
[354949331,1740841762766,-500.0,0.00029496,2]
[354949332,1740841762788,-271.67,0.00029496,2]
[354949333,1740841762810,-1524.27,0.00029496,2]
[354949334,1740841762832,-500.0,0.00029496,2]
[354949335,1740841762853,-500.0,0.00029496,2]
[354949336,1740841762874,-500.0,0.00029496,2]
[354949337,1740841762895,-500.0,0.00029496,2]
[354949338,1740841762918,-500.0,0.00029496,2]
[354949339,1740841762941,-500.0,0.00029496,2]
[354949340,1740841762963,-500.0,0.00029496,2]
[354949341,1740841762984,-572.68520995,0.00029496,2]
[354949342,1740841763005,-591.72,0.00029496,2]
[354949343,1740841763027,-500.0,0.00029496,2]
[354949344,1740841763047,-500.0,0.00029496,2]
[354949345,1740841763068,-500.0,0.00029496,2]
[354949346,1740841763089,-500.0,0.00029496,2]
[354949347,1740841763111,-500.0,0.00029496,2]
[354949348,1740841763132,-500.0,0.00029496,2]
[354949349,1740841763153,-500.0,0.00029496,2]
[354949350,1740841763176,-500.0,0.00029496,2]
[354949351,1740841763198,-1143.96,0.00029496,2]
[354949352,1740841763219,-500.0,0.00029496,2]
[354949353,1740841763434,-533.91,0.00029496,2]
[354949354,1740841763456,-640.14,0.00029496,2]
[354949355,1740841763478,-500.0,0.00029496,2]
[354949356,1740841763500,-570.65978087,0.00029496,2]
[354949357,1740841763521,-627.55,0.00029496,2]
[354949358,1740841763542,-500.0,0.00029496,2]
[354949359,1740841763563,-500.0,0.00029496,2]
[354949360,1740841763584,-500.0,0.00029496,2]
[354949361,1740841763605,-500.0,0.00029496,2]
[354949362,1740841763626,-500.0,0.00029496,2]
[354949363,1740841763647,-609.84,0.00029496,2]
[354949364,1740841763670,-232.64477557,0.00029496,2]
[354949365,1740841763984,-267.35522443,0.00029496,2]
[354949366,1740841764006,-500.0,0.00029496,2]
[354949367,1740841764028,-1292.66,0.00029496,2]
[354949368,1740841764050,-3067.57124602,0.00029496,2]
[354949369,1740841764637,1514.75966213,0.00029157,2]
[354949372,1740841765146,-5292.95875398,0.00029496,2]
[354949374,1740841765169,-500.0,0.00029496,2]
[354949375,1740841765194,-911.18,0.00029496,2]
[354949376,1740841765216,-500.0,0.00029496,2]
[354949378,1740841765238,-5323.55,0.00029496,2]
[354949379,1740841765260,-500.0,0.00029496,2]
[354949380,1740841765283,-500.0,0.00029496,2]
[354949381,1740841765305,-500.0,0.00029496,2]
[354949382,1740841765328,-500.0,0.00029496,2]
[354949383,1740841765349,-500.0,0.00029496,2]
[354949384,1740841765371,-282.85581746,0.00029496,2]
[354949385,1740841765393,-500.0,0.00029496,2]
[354949386,1740841765418,-500.0,0.00029496,2]
[354949387,1740841765440,-1187.54,0.00029496,2]
[354949388,1740841765463,-1897.59,0.00029496,2]
[354949389,1740841765484,-500.0,0.00029496,2]
[354949390,1740841765505,-500.0,0.00029496,2]
[354949391,1740841765528,-729.74,0.00029496,2]
[354949392,1740841765550,-500.0,0.00029496,2]
[354949393,1740841765571,-500.0,0.00029496,2]
[354949394,1740841765593,-1598.84,0.00029496,2]
[354949395,1740841765614,-500.0,0.00029496,2]
[354949396,1740841765635,-500.0,0.00029496,2]
[354949397,1740841765657,-500.0,0.00029496,2]
[354949398,1740841765681,-500.0,0.00029496,2]
[354949399,1740841765708,-500.0,0.00029496,2]
[354949400,1740841765730,-500.0,0.00029496,2]
[354949401,1740841765755,-500.0,0.00029496,2]
[354949402,1740841765778,-500.0,0.00029496,2]
[354949403,1740841765801,-500.0,0.00029496,2]
[354949404,1740841765822,-500.0,0.00029496,2]
[354949405,1740841765843,-500.0,0.00029496,2]
[354949406,1740841765865,-1853.97,0.00029496,2]
[354949407,1740841765887,-500.0,0.00029496,2]
[354949408,1740841765910,-383.72,0.00029496,2]
[354949409,1740841765932,-519.53789569,0.00029496,2]
[354949410,1740841765954,-501.75,0.00029496,2]
[354949411,1740841765976,-500.0,0.00029496,2]
[354949412,1740841765997,-500.0,0.00029496,2]
[354949413,1740841766019,-500.0,0.00029496,2]
[354949414,1740841766040,-1961.11,0.00029496,2]
[354949415,1740841766062,-1887.41,0.00029496,2]
[354949416,1740841766084,-2892.49,0.00029496,2]
[354949417,1740841766105,-500.0,0.00029496,2]
[354949418,1740841766174,-500.0,0.00029496,2]
[354949419,1740841766196,-500.0,0.00029496,2]
[354949420,1740841766218,-500.0,0.00029496,2]
[354949421,1740841766239,-500.0,0.00029496,2]
[354949422,1740841766261,-1351.85,0.00029496,2]
[354949423,1740841766282,-500.0,0.00029496,2]
[354949424,1740841766304,-520.44539865,0.00029496,2]
[354949425,1740841766326,-6252.82,0.00029496,2]
[354949426,1740841766347,-505.82,0.00029496,2]
[354949427,1740841766370,-500.0,0.00029496,2]
[354949428,1740841766392,-727.2,0.00029496,2]
[354949429,1740841766417,-500.0,0.00029496,2]
[354949430,1740841766438,-500.0,0.00029496,2]
[354949431,1740841766463,-3597.49,0.00029496,2]
[354949432,1740841766484,-10611.28,0.00029496,2]
[354949433,1740841766507,-500.0,0.00029496,2]
[354949434,1740841766528,-500.0,0.00029496,2]
[354949435,1740841766549,-500.0,0.00029496,2]
[354949436,1740841766570,-500.0,0.00029496,2]
[354949437,1740841766591,-500.0,0.00029496,2]
[354949438,1740841766613,-573.71,0.00029496,2]
[354949439,1740841766634,-500.0,0.00029496,2]
[354949440,1740841766656,-500.0,0.00029496,2]
[354949441,1740841766678,-500.0,0.00029496,2]
[354949442,1740841766700,-500.0,0.00029496,2]
[354949443,1740841766722,-1178.26,0.00029496,2]
[354949444,1740841766745,-500.0,0.00029496,2]
[354949445,1740841766766,-2892.58,0.00029496,2]
[354949446,1740841766789,-500.0,0.00029496,2]
[354949447,1740841766811,-500.0,0.00029496,2]
[354949448,1740841766832,-500.0,0.00029496,2]
[354949449,1740841766853,-500.0,0.00029496,2]
[354949450,1740841766875,-500.0,0.00029496,2]
[354949451,1740841766899,-500.0,0.00029496,2]
[354949452,1740841766923,-500.0,0.00029496,2]
[354949453,1740841766946,-207.49057384,0.00029496,2]
[354949454,1740841766968,-500.0,0.00029496,2]
[354949455,1740841766990,-500.0,0.00029496,2]
[354949456,1740841767011,-500.0,0.00029496,2]
[354949457,1740841767033,-1286.09,0.00029496,2]
[354949458,1740841767054,-500.0,0.00029496,2]
[354949459,1740841767075,-500.0,0.00029496,2]
[354949460,1740841767096,-275.73487232,0.00029496,2]
[354949461,1740841767117,-556.12,0.00029496,2]
[354949462,1740841767139,-500.0,0.00029496,2]
[354949463,1740841767161,-500.0,0.00029496,2]
[354949464,1740841767183,-1019.35,0.00029496,2]
[354949465,1740841767204,-598.78,0.00029496,2]
[354949466,1740841767225,-500.0,0.00029496,2]
[354949467,1740841767246,-500.0,0.00029496,2]
[354949468,1740841767267,-510.35872643,0.00029496,2]
[354949469,1740841767288,-500.0,0.00029496,2]
[354949470,1740841767310,-518.59,0.00029496,2]
[354949471,1740841767332,-3237.93,0.00029496,2]
[354949472,1740841767353,-500.0,0.00029496,2]
[354949473,1740841767376,-1801.74,0.00029496,2]
[354949474,1740841767398,-1697.93,0.00029496,2]
[354949475,1740841767421,-702.05,0.00029496,2]
[354949476,1740841767443,-500.0,0.00029496,2]
[354949477,1740841767464,-1121.67,0.00029496,2]
[354949478,1740841767486,-1664.32,0.00029496,2]
[354949479,1740841767507,-1136.01,0.00029496,2]
[354949480,1740841767528,-500.0,0.00029496,2]
[354949481,1740841767549,-500.0,0.00029496,2]
[354949482,1740841767571,-755.32,0.00029496,2]
[354949483,1740841767592,-1040.33,0.00029496,2]
[354949484,1740841767614,-500.0,0.00029496,2]
[354949485,1740841767636,-500.0,0.00029496,2]
[354949486,1740841767656,-500.0,0.00029496,2]
[354949487,1740841767680,-500.0,0.00029496,2]
[354949488,1740841767703,-633.0,0.00029496,2]
[354949489,1740841767726,-1365.28,0.00029496,2]
[354949490,1740841767748,-500.0,0.00029496,2]
[354949491,1740841767770,-500.0,0.00029496,2]
[354949492,1740841767796,-494.34112678,0.00029496,2]
[354949493,1740841768043,500.0,0.00027777,2]
[354949494,1740841768073,500.0,0.00028051,2]
[354949495,1740841768101,500.0,0.00028325,2]
[354949496,1740841768127,500.0,0.00028599,2]
[354949497,1740841768312,500.0,0.00028873,2]
[354949498,1740841768399,500.0,0.00029147,2]
[354949499,1740841771196,184.58281798,0.000293,2]
[354949500,1740841783579,5101.73,0.00027777,2]
[354949501,1740841783839,5101.73,0.00028051,2]
[354949502,1740841783988,-500.0,0.00029421,2]
[354949503,1740841784009,-5.65887322,0.00029496,2]
[354949504,1740841784030,-1960.42,0.00029496,2]
[354949505,1740841784049,-500.0,0.00029496,2]
[354949506,1740841784070,-635.99,0.00029496,2]
[354949507,1740841784091,-503.74258211,0.00029496,2]
[354949508,1740841784112,-500.0,0.00029496,2]
[354949509,1740841784132,-302.65243822,0.00029496,2]
[354949510,1740841784152,-1577.74,0.00029496,2]
[354949511,1740841784172,-434.92618331,0.00029496,2]
[354949512,1740841784194,-500.0,0.00029496,2]
[354949513,1740841784215,-500.0,0.00029496,2]
[354949514,1740841784236,-500.0,0.00029496,2]
[354949515,1740841784257,-554.78,0.00029496,2]
[354949516,1740841784277,-558.75,0.00029496,2]
[354949517,1740841784298,-500.0,0.00029496,2]
[354949518,1740841784319,-500.0,0.00029496,2]
[354949519,1740841784340,-500.0,0.00029496,2]
[354949520,1740841784360,-500.0,0.00029496,2]
[354949521,1740841784380,-500.0,0.00029496,2]
[354949522,1740841784401,-513.09187339,0.00029496,2]
[354949523,1740841784421,-1277.27,0.00029496,2]
[354949524,1740841784445,-500.0,0.00029496,2]
[354949525,1740841784466,-500.0,0.00029496,2]
[354949526,1740841784487,-500.0,0.00029496,2]
[354949527,1740841784509,-500.0,0.00029496,2]
[354949528,1740841784529,-500.0,0.00029496,2]
[354949529,1740841784550,-500.0,0.00029496,2]
[354949530,1740841784573,-500.0,0.00029496,2]
[354949531,1740841784596,-500.0,0.00029496,2]
[354949532,1740841784617,-500.0,0.00029496,2]
[354949533,1740841784639,-431.96,0.00029496,2]
[354949534,1740841784661,-698.78,0.00029496,2]
[354949535,1740841784684,-1900.04,0.00029496,2]
[354949536,1740841784708,-500.0,0.00029496,2]
[354949537,1740841784730,-500.0,0.00029496,2]
[354949538,1740841784752,-500.0,0.00029496,2]
[354949539,1740841784773,-500.0,0.00029496,2]
[354949540,1740841784798,-500.0,0.00029496,2]
[354949541,1740841784821,-500.0,0.00029496,2]
[354949542,1740841784843,-500.0,0.00029496,2]
[354949543,1740841784865,-711.37,0.00029496,2]
[354949544,1740841784887,-500.0,0.00029496,2]
[354949545,1740841784909,-500.0,0.00029496,2]
[354949546,1740841784932,-627.04,0.00029496,2]
[354949547,1740841784953,-500.0,0.00029496,2]
[354949548,1740841784974,-500.0,0.00029496,2]
[354949549,1740841784996,-1376.85,0.00029496,2]
[354949550,1740841785016,-493.2916647,0.00029496,2]
[354949551,1740841785037,-500.0,0.00029496,2]
[354949552,1740841785057,-1063.86,0.00029496,2]
[354949553,1740841785079,-500.0,0.00029496,2]
[354949554,1740841785100,-500.0,0.00029496,2]
[354949555,1740841785121,-500.0,0.00029496,2]
[354949556,1740841785142,-1859.27,0.00029496,2]
[354949557,1740841785163,-794.88,0.00029496,2]
[354949558,1740841785185,-3780.77,0.00029496,2]
[354949559,1740841785207,-500.0,0.00029497,2]
[354949560,1740841785227,-214.48511903,0.00029497,2]
[354949561,1740841785247,-500.0,0.00029497,2]
[354949562,1740841785268,-500.0,0.00029497,120]
[354949563,1740841785288,-1334.44,0.00029497,2]
[354949564,1740841785309,-500.0,0.00029497,2]
[354949565,1740841785330,-880.49,0.00029497,2]
[354949566,1740841785350,-227.18,0.00029497,2]
[354949567,1740841785374,-500.0,0.00029497,2]
[354949568,1740841785395,-1180.62,0.00029497,2]
[354949569,1740841785416,-500.0,0.00029497,2]
[354949570,1740841785440,-500.0,0.00029497,2]
[354949571,1740841785462,-500.0,0.00029497,2]
[354949572,1740841785485,-500.0,0.00029497,2]
[354949573,1740841785507,-418.00805935,0.00029497,2]
[354949574,1740841785530,-500.0,0.00029497,2]
[354949575,1740841785551,-500.0,0.00029497,2]
[354949576,1740841785572,-500.0,0.00029497,2]
[354949577,1740841785593,-757.64,0.00029497,2]
[354949578,1740841785615,-500.0,0.00029497,2]
[354949579,1740841785636,-500.0,0.00029497,2]
[354949580,1740841785656,-500.0,0.00029497,2]
[354949581,1740841785677,-500.0,0.00029497,2]
[354949582,1740841785701,-1864.24,0.00029497,2]
[354949583,1740841785724,-500.0,0.00029497,2]
[354949584,1740841785746,-500.0,0.00029497,2]
[354949585,1740841785768,-781.55,0.00029497,2]
[354949586,1740841785791,-5860.45,0.00029497,2]
[354949587,1740841785814,-500.0,0.00029497,2]
[354949588,1740841785835,-534.90737846,0.00029497,2]
[354949589,1740841785856,-500.0,0.00029497,2]
[354949590,1740841785878,-312.87707355,0.00029497,2]
[354949591,1740841786311,-500.0,0.00029497,2]
[354949592,1740841786336,-1899.69,0.00029497,2]
[354949593,1740841786359,-574.37,0.00029497,2]
[354949594,1740841786380,-500.0,0.00029497,2]
[354949595,1740841786402,-64509.91875466,0.00029497,2]
[354949596,1740841786730,5101.73,0.00028325,2]
[354949597,1740841786788,5101.73,0.00028599,2]
[354949598,1740841786830,5101.73,0.00028873,2]
[354949599,1740841786880,5101.73,0.00029147,2]
[354949600,1740841787509,500.0,0.00027777,2]
[354949601,1740841787805,511.17,0.00028051,2]
[354949602,1740841788306,6642.11,0.00027777,2]
[354949603,1740841788566,6642.11,0.00028051,2]
[354949604,1740841788828,6642.11,0.00028325,2]
[354949605,1740841789085,6642.11,0.00028599,2]
[354949606,1740841789385,6642.11,0.00028873,2]
[354949607,1740841789676,6642.11,0.00029147,2]
[354949610,1740841796479,822.43,0.00027777,2]
[354949611,1740841797069,822.43,0.00028051,2]
[354949612,1740841797110,822.43,0.00028325,2]
[354949613,1740841797240,822.43,0.00028599,2]
[354949614,1740841797497,822.43,0.00028873,2]
[354949615,1740841797757,822.43,0.00029147,2]
[354949616,1740841799428,517.60069402,0.00027777,2]
[354949617,1740841801459,2033.6,0.00027777,2]
[354949618,1740841801738,2033.6,0.00028051,2]
[354949619,1740841802028,2033.6,0.00028325,2]
[354949620,1740841802309,2033.6,0.00028599,2]
[354949621,1740841802572,2033.6,0.00028873,2]
[354949622,1740841802878,2033.6,0.00029147,2]